Cogmind - Beta 10.2 @@@ ROGUE MODE // 2021.07.04 @ 20:31:13 Player: HabNab Result: Self-destructed Performance ------------- Evolutions (1) 500 Regions Visited (2) 400 Robots Destroyed (17) 85 Value Destroyed (508) 508 Prototype IDs (3) 60 Alien Tech Used (0) 0 Bonus (0) 0 TOTAL SCORE: 1553 Bonus ------- None Cogmind --------- Core Integrity 326/400 Matter 300/300 Energy 250/250 System Corruption 0% Temperature Cool (0) Movement Walking (120) Location -9/Materials Parts ------- > --- POWER (1) -------- Ion Engine > --- PROPULSION (3) --- Aluminum Leg Aluminum Leg Improved Aluminum Leg > --- UTILITY (3) ------ Heat Sink Large Storage Unit Visual Processing Unit > --- WEAPON (2) ------- Small Laser Heavy Assault Rifle > --- INVENTORY (10) --- Light Ion Engine Aluminum Leg Aluminum Leg Aluminum Leg Improved Sensor Array Improved Signal Interpreter Light Armor Plating Small Laser Rocket Launcher Katana Peak State ------------ > --- POWER ------------ Ion Engine > --- PROPULSION ------- Aluminum Leg Aluminum Leg Improved Aluminum Leg > --- UTILITY ---------- Heat Sink Large Storage Unit Visual Processing Unit > --- WEAPON ----------- Assault Rifle Heavy Assault Rifle > --- INVENTORY -------- Ion Engine Light Ion Engine Light Treads Aluminum Leg Aluminum Leg Improved Signal Interpreter Light Armor Plating Light Assault Rifle Rocket Launcher Katana [Rating: 13] Favorites ----------- Power Ion Engine Engine Ion Engine Propulsion Aluminum Leg Leg Aluminum Leg Utility Heat Sink Device Heat Sink Storage Large Storage Unit Processor Visual Processing Unit Weapon Assault Rifle Energy Gun Medium Laser Ballistic Gun Assault Rifle Build | -11 -10 -9 ------- Run | Scr Mat Mat Slots Evolved 2 | . . 2 Power . | . . . Propulsion 1 | . . 1 Utility 1 | . . 1 Weapon . | . . . Parts Attached 16 | 1 1 14 Power 2 | . . 2 Engine 2 | . . 2 Core . | . . . Reactor . | . . . Propulsion 6 | . . 6 Treads . | . . . Leg 6 | . . 6 Wheel . | . . . Hover . | . . . Flight . | . . . Utility 3 | . 1 2 Device 1 | . 1 . Storage 1 | . . 1 Processor 1 | . . 1 Hackware . | . . . Protection . | . . . Artifact . | . . . Weapon 5 | 1 . 4 Energy Gun 2 | . . 2 Energy Cannon . | . . . Ballistic Gun 3 | 1 . 2 Ballistic Cannon . | . . . Launcher . | . . . Special Weapon . | . . . Impact Weapon . | . . . Slashing Weapon . | . . . Piercing Weapon . | . . . Special Melee Weapon . | . . . Unidentified Prototypes . | . . . Parts Lost 1 | . . 1 Power . | . . . Propulsion . | . . . Utility . | . . . Weapon 1 | . . 1 Highest Loss Streak 1 | . . 1 Average Slot Usage (%) 97 | . 93 98 Engine 11 | . 14 11 Leg 31 | . 28 33 Device 10 | . 8 11 Storage 11 | . 14 11 Processor 7 | . . 9 Energy Gun 5 | . 14 3 Ballistic Gun 17 | . 14 18 Naked Turns . | . . . Heaviest Build 27 | 13 14 27 Greatest Support 33 | 20 20 33 Greatest Overweight (x) . | . . . Average Overweight (x) . | . . . Largest Inventory Capacity 12 | 6 6 12 Average Capacity 8 | 6 6 9 Most Carried 10 | 6 6 10 Average Carried 7 | 6 5 8 Final Capacity 10 | 6 6 10 Final Carried 10 | 6 6 10 Class Distribution -------------------- 59% | Scavenger-Mutant 40% | Mutant Dominant Class ---------------- Mutant | -10/Materials Scavenger-Mutant | -9/Materials Resources | -11 -10 -9 ----------- Run | Scr Mat Mat Matter Collected 572 | 210 46 316 Remotely . | . . . Salvage Created 707 | . 150 557 Parts 36 | . 5 31 Haulers Intercepted 1 | . 1 . Recyclers Shooed 1 | . 1 . Parts Field Recycled . | . . . Retrieved Matter . | . . . Parts Self-Destructed . | . . . Prevented . | . . . Kills | -11 -10 -9 ------- Run | Scr Mat Mat Combat Hostiles Destroyed 13 | . 3 10 Guns 13 | . 3 10 Classes Destroyed 7 | . 3 4 Hauler 1 | . 1 . Recycler 1 | . . 1 Watcher 2 | . . 2 Swarmer 1 | . 1 . Grunt 9 | . 2 7 Duelist 2 | . . 2 Sentry 1 | . . 1 Best Kill Streak 4 | . 3 4 Combat Bots Only 4 | . 2 4 Max Kills in Single Turn 1 | . 1 1 Gunslinging . | . . . Exploded . | . . . Melee . | . . . Uniques/NPCs Destroyed . | . . . Combat | -11 -10 -9 -------- Run | Scr Mat Mat Damage Taken 627 | . 84 543 Core 85 | . 11 74 Absorbed by Shields . | . . . Core Remaining (%) 97 | 100 95 . Volleys Fired 51 | . 12 39 Largest 2 | . 2 2 Hottest 70 | . 70 70 Shots Fired 102 | . 24 78 Gun 102 | . 24 78 Cannon . | . . . Launcher . | . . . Special . | . . . Kinetic 85 | . 12 73 Thermal 17 | . 12 5 Explosive . | . . . Electromagnetic . | . . . Robot Hit Streak 22 | . 10 22 Robot Miss Streak 2 | . 2 2 Penetration Max . | . . . Secondary Targets 2 | . . 2 Max Gunslinging Chain 1 | . . 1 Shots Hit Robots 80 | . 15 65 Core Hits 32 | . 8 24 Critical Hits . | . . . Critical Kills . | . . . Critical Parts Destroyed . | . . . Melee Attacks . | . . . Impact . | . . . Slashing . | . . . Piercing . | . . . Sneak Attacks . | . . . Combat Hostiles . | . . . Follow-up Attacks . | . . . Damage Inflicted 984 | . 189 795 Guns 984 | . 189 795 Cannons . | . . . Explosions . | . . . Melee . | . . . Ramming . | . . . Kinetic 826 | . 79 747 Thermal 158 | . 110 48 Explosive . | . . . Electromagnetic . | . . . Impact . | . . . Slashing . | . . . Piercing . | . . . Highest Corruption . | . . . Average Corruption . | . . . Corruption Purged . | . . . Overload Shots . | . . . Overflow Damage . | . . . Projectiles . | . . . Explosions . | . . . Melee . | . . . Knockbacks . | . . . Impact . | . . . Kinetic . | . . . Secondary . | . . . Self-Inflicted Damage . | . . . Shots . | . . . Rammed . | . . . Targets Rammed . | . . . Kicked . | . . . Crushed . | . . . Highest Temperature 54 | . 54 . Average Temperature 25 | . 25 . Received Heat Transfer 198 | . 30 168 Siege Activations . | . . . Robots Corrupted . | . . . Combat Hostiles . | . . . Parts Fried . | . . . Impact Corruptions . | . . . Robots Melted . | . . . Combat Hostiles . | . . . Parts Melted . | . . . Heat Transferred 469 | . 333 136 Parts Sabotaged . | . . . Parts Stolen . | . . . Parts Stripped . | . . . Power Chain Reactions . | . . . Missiles Intercepted . | . . . Alert | -11 -10 -9 ------- Run | Scr Mat Mat Peak Influence 275 | . 109 275 Initial 45 | . . 45 Average 128 | . 52 154 Maximum Alert Level 1 | . . 1 Low Security (%) 67 | 100 100 56 Level 1 32 | . . 43 Level 2 . | . . . Level 3 . | . . . Level 4 . | . . . Level 5 . | . . . High Security . | . . . Max Security . | . . . Squads Dispatched 3 | . . 3 Investigation 1 | . . 1 Extermination . | . . . Reinforcement 2 | . . 2 Assault . | . . . Garrison . | . . . Intercept . | . . . Construction Impeded . | . . . Haulers Reinforced . | . . . Stealth | -11 -10 -9 --------- Run | Scr Mat Mat Distress Signals 3 | . . 3 Communications Jammed . | . . . Distress Signals . | . . . Times Spotted 25 | . 5 20 Peak Tracking Total 5 | . 3 5 Tactical Retreats 3 | . 1 2 Traps | -11 -10 -9 ------- Run | Scr Mat Mat Traps Triggered 1 | . . 1 Indirectly . | . . . Trap Hack Attempts . | . . . Triggered . | . . . Disarmed . | . . . Reprogrammed . | . . . Reused . | . . . Traps Extracted . | . . . Installed . | . . . Triggered . | . . . Machines | -11 -10 -9 ---------- Run | Scr Mat Mat Machines Disabled . | . . . Max in Single Turn . | . . . Machines Sabotaged . | . . . Garrisons Compromised . | . . . Overloaded Fab Kills . | . . . Fab Network Shutdowns . | . . . Hacking | -11 -10 -9 --------- Run | Scr Mat Mat Machines Accessed 5 | . 2 3 Terminals 5 | . 2 3 Fabricators . | . . . Repair Stations . | . . . Recycling Units . | . . . Scanalyzers . | . . . Garrison Access . | . . . Total Hacks 8 | . 3 5 Successful 5 | . 3 2 Failed 3 | . . 3 Catastrophic . | . . . Database Lockouts . | . . . Manual 3 | . . 3 Terminals 8 | . 3 5 Fabricators . | . . . Repair Stations . | . . . Recycling Units . | . . . Scanalyzers . | . . . Garrison Access . | . . . Terminal Hacks 5 | . 3 2 Prototype ID Bank 2 | . 1 1 Branch Access Points 1 | . 1 . Zone Layout 2 | . 1 1 Fabricator Hacks . | . . . Repair Station Hacks . | . . . Recycling Unit Hacks . | . . . Scanalyzer . | . . . Garrison Access Hacks . | . . . Unauthorized Hacks . | . . . Terminals . | . . . Fabricators . | . . . Repair Stations . | . . . Recycling Units . | . . . Scanalyzers . | . . . Garrison Access . | . . . Data Cores Recovered . | . . . Used . | . . . Hacking Detections 5 | . 2 3 Full Trace Events . | . . . Feedback Events . | . . . Feedback Blocked . | . . . Robot Schematics Acquired . | . . . Robots Built . | . . . Matter . | . . . Time . | . . . Total Robot Build Rating . | . . . Part Schematics Acquired . | . . . Parts Built . | . . . Matter . | . . . Time . | . . . Total Part Build Rating . | . . . Parts Repaired . | . . . Time . | . . . Parts Recycled . | . . . Recycled Matter . | . . . Retrieved Matter . | . . . Retrieved Components . | . . . Parts Scanalyzed . | . . . Part Schematics Acquired . | . . . Parts Damaged . | . . . Bothacking | -11 -10 -9 ------------ Run | Scr Mat Mat Used RIF Installer . | . . . Robots Hacked . | . . . Non-combat . | . . . Combat . | . . . Robot Hacks Applied . | . . . Relay Couplers Released . | . . . Robots Rewired . | . . . Allies Hacked . | . . . Hacks Repelled . | . . . Allies | -11 -10 -9 -------- Run | Scr Mat Mat Total Allies . | . . . Largest Group . | . . . Highest-Rated Group . | . . . Highest-Rated Ally . | . . . Total Orders . | . . . Ally Attacks . | . . . Total Damage . | . . . Kills . | . . . Allies Corrupted . | . . . Allies Melted . | . . . Intel | -11 -10 -9 ------- Run | Scr Mat Mat Robot Analysis Total . | . . . Derelict Logs Recovered . | . . . Drone Launches . | . . . Drone Recoveries . | . . . Exploration | -11 -10 -9 ------------- Run | Scr Mat Mat Turns Passed 773 | 7 188 578 Spaces Moved 453 | 5 122 326 Core . | . . . Treads . | . . . Legs 453 | 5 122 326 Wheels . | . . . Hover . | . . . Flight . | . . . Fastest Speed 120 | 120 120 120 Average Speed 120 | 120 120 120 Slowest Speed 120 | 120 120 120 Overloaded Moves . | . . . Propulsion Burnouts . | . . . Robots Hopped . | . . . Cave-ins Triggered . | . . . Exploration Rate (%) 19 | 2 26 29 Regions Visited 2 Branch Regions . Pre-discovered Areas . | . . . Known Exits Taken . | . . . Unknown Exits Taken 2 | 1 1 . Scrap Searched . | . . . Spaces Dug . | . . . Terrain Destroyed . | . . . Melee . | . . . Projectile . | . . . AOE . | . . . Terrain Rammed . | . . . Walls Destroyed . | . . . Machines Disabled . | . . . Actions | -11 -10 -9 --------- Run | Scr Mat Mat Total 585 | 5 140 440 Wait 44 | . 2 42 Move 451 | 4 121 326 Hop . | . . . Pick Up 10 | . 2 8 Fast Attach 4 | . 1 3 Attach 2 | . . 2 Detach . | . . . Swap 10 | 1 . 9 Drop 13 | . 2 11 Fire 51 | . 12 39 Melee . | . . . Ram . | . . . Kick . | . . . Crush . | . . . Escape Stasis . | . . . Rewire . | . . . Trap . | . . . Miscellaneous . | . . . Route ------- -11/Scrapyard -10/Materials (discovered 2 exits: *Mat / Min) -9/Materials History --------- Turn | Location | Event 3 | -11/Scrapyard | Discovered new exit (range 2) 8 | -11/Scrapyard | Entered Materials 166 | -10/Materials | Discovered new exit (range 8) 177 | -10/Materials | Identified exit to Mines 196 | -10/Materials | Entered another Materials area 196 | -9/Materials | Evolved 2 slots: Propulsion x1, Utility x1 311 | -9/Materials | Build established: Mutant 611 | -9/Materials | Build established: Scavenger-Mutant 774 | -9/Materials | Self-destructed Last Messages --------------- 00706_ ALERT: Hostiles spotted, dispatching reinforcements to Terminal M008. 00707_ Dropped Ion Engine. 00708_ Dropped Lgt. Assault Rifle. 00713_ Dropped Aluminum Leg. 00713_ R-06 Scavenger collects Aluminum Leg. 00714_ Acquired 60 matter. 00716_ R-06 Scavenger collects Heat Sink. 00716_ Dropped Aluminum Leg. 00717_ Acquired 36 matter. 00720_ R-06 Scavenger collects Ion Engine. 00720_ R-06 Scavenger destroyed. 00723_ Acquired 27 matter. 00725_ Dropped Ion Engine. 00726_ Acquired Imp. Sensor Array. 00727_ Dropped Lgt. Treads. 00728_ Acquired Aluminum Leg. 00746_ K-01 Serf collects debris. 00749_ W-16 Scout sends out distress signal. 00750_ K-01 Serf collects debris. Map ----- +----------------------------------------------------+ | ?????????????????????????????? | | ?????????????????????????????? | | ?????????????????????????????? | | ?????????????????????????????? | | ?????????????????????????????? | | ?????????????????????????????? | | ?????????????????????????????? | | ????????????? ??????????????? | | ???????????# ??????????????? | | ???????????# #?????????????? | | ??????" ??# #?????????????? | | ??????? ?## g##????????????? | | ????####+## #????????????? | | ????# #????????????? | | ????# g #????????????? | | ????# #????????????? | | ????# !! #????????????? | | ????# != #????????????? | | ????# #######+#####? | | ????# ?? | | ????# #??? | | ????# """ #??? | | ????# """ #??? | | ????# !!| """ !! #??? | | ????# *!|| """ !! #??? | | ????#@ *%=|| #??? | | ????# *% %k #??? | | ????# [= !!#############??? | | ????# [""= # "" #??????? | | ????# "" # ""S #??????? | | ????# T" # "" #??????? | | ????# "" # ????????? | | ????# "" # ??????????? | | ???## ##+############? | | ???# % | | ???# #####+## #########? | | ???# # # # #? | | ???# # # + #? | | ???# # # ## # #? | | ???# # # ## ###+#####? | | ???# # # ## #?# #????? | | ???# #!%% # ##+###### #????? | | ???# ##+##### # ## #????? | | ???# #???# # """ ## #????? | | ???# #???# # """ ## #????? | | ???# #???# # """ ## #????? | | ???# #???# # ## #????? | | ???# ###?# # ## #????? | | ???# #T### ######### #????? | | ???# ######### #????? | +----------------------------------------------------+ Best States ------------- Heat Dissipation 38 Energy Generation 10 Energy Capacity 250 Matter Stores 300 Matter Capacity 300 Sight Range 18 Terrain Scan Density 10 Evasion (%) 40 Item Schematics ----------------- None Robot Schematics ------------------ None Fabricated ------------ Nothing Alien Tech Used ----------------- None Achievements -------------- None Challenges ------------ None Game ------ Seed MyomerNullApparatus Manual? 0 Play Time 00:11:52 Cumulative 18.4 hours Start 2021.07.04 @ 20:22:15 End 2021.07.04 @ 20:31:13 Sessions 1 Manual Loads 0 Difficulty Rogue Special Mode None Game No. 24 Rogue 24 Adventurer 0 Explorer 0 Win Type - Total 0 Types 0/0/0/0/0/0/0/0/0 Lore% 33 Gallery% 39 Achievement% 30 Wizard Run 0 Options --------- ASCII 0 Keyboard 0 Movement Mouse Keybinds 0 Fullscreen 2 Font 18/SmallcapsGlow Map View 76x50 Tactical HUD 1 Map Filters NONE Filters NONE Steam 1 RUN: 3bcc9dea-ea23-463d-8ce1-3872b9e6a48c